bitfinex/quotes_ETHUSD_20250724
["timestamp","ask_amount","ask_price","bid_price","bid_amount"]
[1753379947709,0.792,3727.5,3726.9,4.183]
[1753379947913,3.0,3727.3,3726.9,4.183]
[1753379948111,3.12606251,3727.3,3726.9,4.183]
[1753379948408,2.68298783,3727.2,3726.9,4.183]
[1753379948615,3.6198222,3727.3,3726.9,4.183]
[1753379948797,3.1260222,3727.3,3726.9,4.183]
[1753379949003,1.5139871,3727.3,3726.5,0.001]
[1753379949313,2.68317694,3727.0,3726.5,0.001]
[1753379949512,0.9369,3727.4,3726.5,0.001]
[1753379949709,2.68310964,3727.1,3726.5,0.001]
[1753379949925,0.1344,3726.8,3726.5,0.001]
[1753379950079,0.4938,3727.2,3726.5,0.001]
[1753379950282,0.1344,3726.9,3726.5,0.001]
[1753379950477,0.1344,3726.9,3726.5,0.4739]
[1753379950912,0.1344,3726.9,3726.5,0.50073483]
[1753379951918,0.1344,3726.9,3726.5,3.18420828]
[1753379952525,0.1344,3726.9,3726.5,0.50073483]
[1753379952689,0.1344,3726.9,3726.5,3.18421272]
[1753379953087,0.1344,3726.9,3726.5,0.50073483]
[1753379953625,0.1344,3726.9,3726.5,1.0462706]
[1753379953833,0.1344,3727.2,3726.7,2.81773914]
[1753379953982,3.1344,3727.5,3726.9,2.6831446]
[1753379954188,2.68288805,3727.4,3727.0,0.1344]
[1753379954405,2.68288805,3727.4,3727.1,4.178]
[1753379954605,3.61978805,3727.4,3727.1,4.178]
[1753379954807,0.9369,3727.4,3727.1,4.178]
[1753379955125,3.1344,3727.5,3727.1,4.178]
[1753379956212,2.81719146,3727.5,3727.1,4.178]
[1753379956595,3.31429146,3727.5,3727.1,4.178]
[1753379957335,2.68284923,3727.4,3727.1,4.178]
[1753379957632,3.75617,3727.5,3727.1,4.178]
[1753379957841,2.68290465,3727.4,3727.1,4.178]
[1753379958338,0.7682,3727.8,3726.5,0.001]
[1753379958339,0.939,3727.3,3726.5,0.001]
[1753379958537,2.68309938,3727.1,3726.6,4.174]
[1753379958719,1.0734,3727.0,3726.6,4.174]
[1753379959440,2.68325407,3726.9,3726.6,4.174]
[1753379959635,3.756537,3727.0,3726.6,4.174]
[1753379959840,2.68319514,3726.9,3726.6,4.174]
[1753379960138,3.62219514,3726.9,3726.6,4.174]
[1753379960336,2.68313994,3727.0,3726.7,0.7666]
[1753379960542,2.81738252,3727.2,3726.7,0.7666]
[1753379960738,2.68313729,3727.0,3726.7,0.7666]
[1753379961511,3.756401,3727.2,3726.7,0.7666]
[1753379961711,2.68317184,3727.0,3726.7,0.7666]
[1753379962159,2.6832018,3726.9,3726.7,0.7666]
[1753379962652,0.1344,3727.2,3726.7,1.2226]
[1753379962851,0.1344,3727.2,3726.5,0.7599]
[1753379962852,2.68324929,3726.9,3726.5,0.7599]
[1753379963034,3.75664929,3726.9,3726.8,4.17]
[1753379963557,2.81764929,3726.9,3726.8,4.17]
[1753379963861,2.81761751,3726.9,3726.8,4.17]
[1753379964055,0.1344,3726.9,3726.8,4.17]
[1753379966375,2.81759514,3726.9,3726.8,4.17]
[1753379966743,0.1344,3726.9,3726.8,4.17]
[1753379966927,0.1344,3726.9,3726.5,0.7599]
[1753379967129,0.1344,3726.9,3726.6,4.167]
[1753379968440,0.1344,3727.0,3726.6,4.167]
[1753379968642,0.939,3726.9,3726.5,0.001]
[1753379968846,0.1344,3726.8,3726.7,4.164]
[1753379969061,3.75666714,3726.8,3726.7,4.164]
[1753379969368,2.683382,3726.7,3726.5,0.001]
[1753379969572,0.939,3726.7,3726.5,0.001]
[1753379969775,3.62234485,3726.7,3726.5,0.001]
[1753379970269,0.939,3726.7,3726.5,0.001]
[1753379970471,0.939,3726.6,3726.5,0.001]
[1753379972173,3.63826985,3726.8,3726.5,0.001]
[1753379972473,2.68335481,3726.7,3726.5,0.001]
[1753379972678,0.955,3726.8,3726.5,0.001]
[1753379972679,3.63828216,3726.8,3726.5,0.001]
[1753379972876,0.4419,3726.7,3726.5,0.001]
[1753379973095,4.13538216,3726.8,3726.5,0.001]
[1753379973096,0.1344,3726.8,3726.5,0.001]
[1753379975752,0.1344,3726.8,3726.6,2.68334513]
[1753379975957,0.1344,3726.9,3726.6,3.13939475]
[1753379976192,0.1344,3726.9,3726.5,0.001]
[1753379976668,0.1344,3726.9,3726.5,2.684479]
[1753379977083,0.1344,3726.9,3726.5,0.001]
[1753379977678,0.939,3726.8,3726.5,0.001]
[1753379978901,0.1344,3726.9,3726.5,6.84043913]
[1753379979605,0.1344,3726.9,3726.6,0.456]
[1753379979762,0.4419,3727.2,3726.7,0.8]
[1753379980099,0.1344,3727.0,3726.7,0.8]
[1753379980862,0.1344,3727.0,3726.7,3.48332146]
[1753379981062,0.1344,3727.0,3726.7,0.8]
[1753379984592,4.149,3727.3,3726.7,0.8]
[1753379984894,0.002,3727.4,3727.3,2.68290719]
[1753379985099,0.002,3727.4,3727.3,4.37593626]
[1753379988383,0.002,3727.4,3727.3,4.34910719]
[1753379988904,0.002,3727.4,3727.3,4.36820719]
[1753379989313,0.002,3727.4,3727.3,5.95824203]
[1753379990587,0.002,3727.4,3727.3,6.40304203]
[1753379991275,0.002,3727.4,3727.3,12.44945098]
[1753379993171,0.002,3727.4,3727.3,12.00465098]
[1753379993503,0.002,3727.4,3727.3,12.44945098]
[1753379994880,0.002,3727.4,3727.3,12.58385098]
[1753379995083,0.002,3727.4,3727.3,2.52079021]
[1753379995378,0.002,3727.4,3727.3,6.65243802]
[1753379995707,0.002,3727.4,3727.3,9.30851614]
[1753379997195,0.002,3727.4,3727.3,9.60601614]
[1753379998308,0.002,3727.4,3727.3,10.24631614]
[1753379998805,0.002,3727.4,3727.3,9.94881614]
[1753379999010,0.002,3727.4,3727.3,12.35440287]
[1753379999676,0.002,3727.4,3727.3,11.61210287]
[1753380000208,0.002,3727.4,3727.3,2.88278673]
[1753380000410,0.946,3727.4,3727.3,0.1344]
[1753380000708,2.68305215,3727.1,3726.5,0.1354]
[1753380000897,2.68305215,3727.1,3726.6,4.143]
[1753380000898,0.944,3727.0,3726.6,4.143]
[1753380001280,0.944,3727.0,3726.5,0.1354]
[1753380001281,3.62721891,3726.9,3726.7,4.143]
[1753380001511,3.62726818,3726.8,3726.5,0.1354]
[1753380001807,0.944,3726.7,3726.6,4.143]
[1753380001980,0.944,3727.1,3726.6,6.82641115]
[1753380002180,0.944,3727.0,3726.5,0.1354]
[1753380002420,0.8214,3726.6,3726.5,0.001]
[1753380002584,1.7654,3726.6,3726.5,4.144]
[1753380003680,0.944,3727.0,3726.5,4.144]
[1753380003882,0.944,3726.9,3726.5,4.2784]
[1753380004081,2.81752935,3727.0,3726.5,4.2784]
[1753380004082,0.944,3726.8,3726.5,4.2784]
[1753380004407,0.4751,3726.7,3726.5,4.2784]
[1753380004880,0.6095,3727.0,3726.5,4.2784]
[1753380005082,0.1344,3727.0,3726.5,4.2784]
[1753380005282,3.62722861,3726.9,3726.5,4.2784]
[1753380005480,0.944,3726.8,3726.5,0.1354]
[1753380005791,0.944,3726.7,3726.5,4.2784]
[1753380006003,0.944,3726.6,3726.5,4.2784]
[1753380006507,0.944,3726.6,3726.5,0.001]
[1753380006711,0.944,3726.6,3726.5,4.144]
[1753380007934,0.4751,3726.6,3726.5,4.144]
[1753380008721,0.4751,3726.6,3726.5,6.82748316]
[1753380008924,0.4751,3726.8,3726.5,4.144]
[1753380009224,0.4751,3726.6,3726.5,4.144]
[1753380009517,0.1344,3726.9,3726.5,6.82748316]
[1753380009719,0.002,3727.0,3726.6,0.02683411]
[1753380009920,0.002,3727.0,3726.7,2.81772199]
[1753380010123,0.4751,3726.9,3726.8,4.143]
[1753380010323,0.4751,3726.9,3726.8,6.82626714]
[1753380011237,0.002,3727.0,3726.9,2.68319514]
[1753380011389,0.002,3727.0,3726.9,2.81759514]
[1753380011734,0.002,3727.0,3726.9,3.28922709]
[1753380012037,0.002,3727.0,3726.9,2.81759514]
[1753380012329,0.002,3727.0,3726.9,3.48472709]
[1753380012484,0.002,3727.0,3726.9,5.01028202]
[1753380012893,0.002,3727.0,3726.9,4.56548202]
[1753380013691,0.002,3727.0,3726.9,5.01028202]
[1753380014223,0.002,3727.0,3726.9,4.56548202]
[1753380015135,0.002,3727.0,3726.8,4.63949326]
[1753380015136,0.946,3727.0,3726.8,4.143]
[1753380015341,0.002,3727.0,3726.9,4.143]
[1753380015510,0.002,3727.0,3726.9,6.82619514]
[1753380016621,0.002,3727.0,3726.9,4.143]
[1753380016943,0.4827,3727.0,3726.9,6.82619514]
[1753380017125,0.4827,3727.0,3726.9,4.143]
[1753380017421,0.7546,3726.9,3726.5,0.001]
[1753380017622,0.30417,3726.8,3726.6,4.143]
[1753380017926,3.43541115,3726.6,3726.5,0.001]
[1753380018094,3.56981115,3726.6,3726.5,0.001]
[1753380018297,4.51091115,3726.6,3726.5,0.001]
[1753380018495,1.8275,3726.6,3726.5,0.001]
[1753380019828,4.51091115,3726.6,3726.5,0.001]
[1753380020640,1.0755,3726.6,3726.5,0.001]
[1753380020838,3.75891115,3726.6,3726.5,0.001]
[1753380021267,4.48075925,3726.6,3726.5,0.001]
[1753380021551,8.23355925,3726.6,3726.5,0.001]
[1753380025096,8.78355925,3726.6,3726.5,0.001]
[1753380025642,12.37655925,3726.6,3726.5,0.001]
[1753380025855,4.8283,3726.6,3726.5,0.001]
[1753380026021,7.51171115,3726.6,3726.5,0.001]
[1753380027762,11.65571115,3726.6,3726.5,0.001]
[1753380028168,8.9723,3726.6,3726.5,0.001]
[1753380028349,7.51171115,3726.6,3726.5,0.001]
[1753380028656,4.8283,3726.6,3726.5,0.001]
[1753380028967,0.1344,3726.6,3726.5,2.68448316]
[1753380029178,0.1364,3727.0,3726.5,0.95488919]
[1753380029372,0.1364,3727.0,3726.7,2.68328324]
[1753380029660,1.7448,3726.9,3726.5,0.001]
[1753380029868,0.1344,3726.6,3726.5,0.001]
[1753380030388,1.0755,3726.6,3726.5,0.001]
[1753380030671,0.1344,3726.6,3726.5,2.68448316]
[1753380030873,4.05171115,3726.6,3726.5,0.001]
[1753380031075,7.72520949,3726.6,3726.5,0.001]
[1753380031223,8.20590949,3726.6,3726.5,0.001]
[1753380031644,5.52249834,3726.6,3726.5,0.001]
[1753380031843,7.53241115,3726.6,3726.5,0.001]
[1753380033763,4.3886,3726.6,3726.5,0.001]
[1753380033937,7.07201115,3726.6,3726.5,0.001]
[1753380034138,7.53241115,3726.6,3726.5,0.001]
[1753380036769,0.1344,3726.6,3726.5,0.001]
[1753380036934,0.6151,3726.6,3726.5,0.001]
[1753380037445,1.0755,3726.6,3726.5,0.001]
[1753380043139,0.6151,3726.6,3726.5,0.001]
[1753380044172,1.26545,3726.6,3726.5,0.001]
[1753380044508,7.76686115,3726.6,3726.5,0.001]
[1753380044868,8.31686115,3726.6,3726.5,0.001]
[1753380045401,8.31686115,3726.6,3726.5,1e-08]
[1753380045555,0.7567,3725.1,3724.6,4.155]
[1753380045880,0.1344,3724.8,3724.2,0.6403]
[1753380046080,0.1344,3724.8,3724.2,0.71239217]
[1753380046081,0.4627,3724.7,3724.2,0.71239217]
[1753380046280,0.1344,3724.6,3724.2,6.84112775]
[1753380046482,0.4627,3724.5,3724.2,4.156]
[1753380046691,0.4627,3724.4,3724.1,0.1344]
[1753380047020,3.44182589,3724.3,3723.9,4.156]
[1753380047278,3.44182589,3724.3,3723.4,0.1344]
[1753380047279,0.1344,3724.0,3723.4,0.1344]
[1753380047452,1.4760191,3724.3,3723.3,0.6403]
[1753380047453,0.1344,3723.7,3723.3,4.7973]
[1753380047657,0.1344,3723.9,3723.4,0.5637]
[1753380048070,3.61748411,3723.8,3722.8,3.3264449]
[1753380048300,0.1344,3723.5,3722.9,0.1344]
[1753380048475,0.7567,3723.6,3723.2,2.68581153]
[1753380048676,0.4627,3723.8,3723.0,0.1344]
[1753380049000,3.0,3724.7,3723.5,0.1344]
[1753380049001,0.4627,3724.5,3723.5,0.1344]
[1753380049164,0.4627,3724.5,3723.6,6.84853275]
[1753380049165,0.1344,3724.2,3723.6,6.84853275]
[1753380049480,0.1344,3724.2,3723.1,2.68591229]
[1753380049481,0.1344,3723.6,3722.3,0.6403]
[1753380049660,0.7567,3723.1,3722.0,4.8033]
[1753380049861,0.1344,3722.7,3722.3,2.68646932]
[1753380050058,0.4627,3722.6,3722.1,0.1344]
[1753380050258,0.4627,3722.5,3722.0,8.01328325]
[1753380050463,0.4627,3722.4,3722.1,2.68664043]
[1753380050647,0.1344,3722.7,3722.1,2.68658456]
[1753380050873,0.4627,3722.6,3722.1,2.68658456]
[1753380051072,0.1344,3722.7,3722.0,1.29796]
[1753380051250,0.1344,3722.7,3721.3,0.1344]
[1753380051251,0.1344,3722.1,3721.3,0.1344]
[1753380051450,0.1344,3721.9,3721.2,1.01316845]
[1753380051652,0.1344,3722.3,3721.4,2.68716074]
[1753380051855,0.4627,3722.7,3721.7,0.1344]
[1753380052071,2.68661829,3722.2,3721.5,4.3044]
[1753380052271,0.1344,3722.0,3721.5,4.3044]
[1753380052468,2.68674736,3722.0,3721.5,4.17]
[1753380052703,0.1344,3721.8,3721.5,4.17]
[1753380053381,0.1344,3721.6,3721.2,4.41246845]
[1753380053589,0.1344,3721.4,3721.2,4.41246845]
[1753380053804,0.4627,3722.2,3721.2,4.41246845]
[1753380053805,0.1344,3721.8,3721.3,0.7268]
[1753380054078,0.1344,3721.8,3721.3,3.11651284]
[1753380054292,0.1344,3721.8,3721.2,6.99569005]
[1753380054478,3.49060963,3721.7,3721.2,0.1344]
[1753380054684,0.8036,3721.7,3721.5,2.68705694]
[1753380054885,0.4627,3721.6,3721.0,2.68743272]
[1753380055205,0.4627,3721.6,3720.7,2.98511739]
[1753380055206,3.0,3721.4,3720.9,4.179]
[1753380055525,3.0,3721.4,3720.4,3.32813125]
[1753380055526,0.1344,3720.9,3720.4,0.1344]
[1753380055669,0.932,3720.8,3719.9,3.32848175]
[1753380055872,0.932,3720.8,3718.9,6.52905542]
[1753380055873,0.1344,3720.4,3720.0,0.001]
[1753380056117,0.1344,3720.1,3720.0,0.001]
[1753380056274,2.82249978,3720.1,3720.0,0.001]
[1753380056474,1.0664,3720.1,3720.0,0.001]
[1753380056701,3.75449978,3720.1,3720.0,0.001]
[1753380057019,4.96004976,3720.1,3720.0,0.001]
[1753380057433,7.96004976,3720.1,3720.0,0.001]
[1753380058706,9.46894998,3720.1,3720.0,0.001]
[1753380059026,12.15704976,3720.1,3720.0,0.001]
[1753380059228,12.15804976,3720.1,3720.0,0.001]
[1753380059595,7.96004976,3720.1,3720.0,0.001]
[1753380059798,12.15804976,3720.1,3720.0,0.001]
[1753380060194,5.27194998,3720.1,3720.0,0.001]
[1753380060397,7.96004976,3720.1,3720.0,0.001]
[1753380060595,12.15804976,3720.1,3720.0,0.001]
[1753380060834,0.8301,3720.5,3720.0,0.001]
[1753380061033,1.2928,3721.0,3720.0,14.13530257]
[1753380061197,0.4627,3720.9,3720.2,2.68800852]
[1753380061392,0.4627,3720.9,3720.2,4.208]
[1753380061733,0.22954499,3721.7,3720.5,9.20950257]
[1753380062038,0.22954499,3721.7,3721.5,2.68707105]
[1753380062254,0.22954499,3721.7,3721.4,2.68712506]
[1753380062419,0.69224499,3721.7,3721.3,2.68722269]
[1753380062624,0.69224499,3721.7,3721.4,2.68711862]
[1753380063150,0.932,3721.6,3721.0,4.211]
[1753380063325,0.932,3721.6,3720.5,2.6878025]
[1753380063326,3.0,3721.4,3720.7,4.212]
[1753380063535,0.22954499,3721.7,3720.7,4.212]
[1753380063717,0.22954499,3721.7,3721.4,2.68716016]
[1753380063920,0.22954499,3721.7,3720.8,0.32437594]
[1753380064120,1.2928,3722.0,3720.8,0.75367594]
[1753380064371,0.4627,3722.5,3721.3,2.68723295]
[1753380064522,0.7556,3722.8,3721.4,4.9676716]
[1753380064837,0.4627,3722.8,3722.3,2.68644799]
[1753380065035,0.4627,3722.8,3722.1,6.9006526]
[1753380065230,0.4627,3722.8,3722.2,2.6865832]
[1753380065434,2.68622236,3722.7,3721.9,0.2975]
[1753380065616,0.4627,3722.8,3722.2,4.215]
[1753380065820,0.4627,3722.8,3722.3,2.68651102]
[1753380066053,0.4627,3723.2,3722.3,0.02686511]
[1753380066231,3.14858107,3723.2,3722.4,2.68643885]
[1753380066431,3.0,3723.1,3722.5,2.68636572]
[1753380066653,0.4627,3723.2,3722.4,0.02686438]
[1753380066821,0.4627,3723.4,3722.5,0.5259251]
[1753380067022,0.4627,3723.4,3722.6,0.2975]
[1753380067249,0.4627,3723.7,3722.7,0.02686222]
[1753380067555,2.68506833,3724.3,3722.8,4.9398]
[1753380067782,0.8152,3724.4,3723.0,9.59392123]
[1753380067783,3.50021435,3724.4,3723.0,9.59392123]
[1753380067925,0.8152,3724.4,3723.3,2.68572728]
[1753380068252,0.8152,3724.4,3723.4,4.24085717]
[1753380068421,3.96289979,3724.4,3723.7,2.68544117]
[1753380068760,1.08207718,3724.5,3723.8,0.02685428]
[1753380068971,1.08207718,3724.5,3723.8,2.98291507]
[1753380069256,0.4627,3724.6,3723.9,3.281136]
[1753380069555,0.4627,3724.6,3724.0,4.213]
[1753380070272,2.68492702,3724.5,3724.0,4.23985284]
[1753380070427,0.4627,3724.9,3724.1,0.2975]
[1753380070751,2.68477998,3724.7,3724.1,0.2975]
[1753380070950,2.81927863,3724.6,3724.1,0.4319]
[1753380071154,0.5971,3724.6,3724.1,0.1344]
[1753380071938,0.5971,3724.6,3724.2,4.21]
[1753380072136,0.5971,3724.6,3724.2,4.209]
[1753380072761,3.1344,3724.6,3724.1,0.1344]
[1753380072960,0.8006,3724.3,3723.5,4.208]
[1753380073266,0.1344,3723.8,3723.5,4.209]
[1753380073850,0.1344,3723.8,3723.3,2.82017217]
[1753380074050,0.1344,3723.8,3723.4,4.208]
[1753380074756,0.5971,3723.8,3723.4,4.208]
[1753380075343,0.1344,3723.8,3723.4,4.208]
[1753380075947,0.1344,3723.8,3723.4,5.28100389]
[1753380076362,0.1344,3723.8,3723.4,4.98350389]
[1753380077134,0.4894,3724.0,3723.4,7.66920746]
[1753380077333,0.1344,3723.9,3723.4,5.28100389]
[1753380077740,0.6238,3723.9,3723.4,4.98350389]
[1753380077949,3.30916069,3723.9,3723.4,4.98350389]
[1753380078261,0.4894,3723.8,3723.5,4.202]
[1753380078445,0.4894,3723.7,3723.5,4.202]
[1753380078847,0.1344,3723.9,3723.5,4.202]
[1753380079467,0.1344,3723.9,3723.3,0.1344]
[1753380079468,2.68542886,3723.8,3723.3,0.1344]
[1753380079674,0.9212,3723.7,3722.4,0.6403]
[1753380079962,2.68605417,3723.0,3722.5,4.3344]
[1753380080336,3.60729994,3722.9,3722.0,0.6403]
[1753380080541,0.1344,3722.8,3722.3,2.68649133]
[1753380080847,0.1344,3722.8,3722.5,2.68636361]
[1753380081047,0.4894,3723.3,3722.6,4.22886294]
[1753380081365,0.1344,3723.1,3722.8,2.68610125]
[1753380081669,0.1344,3723.1,3722.7,4.202]
[1753380082465,0.1344,3723.1,3722.7,6.88821134]
[1753380082766,0.1344,3723.1,3722.7,4.202]
[1753380083431,0.6238,3723.1,3722.7,4.202]
[1753380083948,0.9212,3723.0,3722.7,4.202]
[1753380084148,3.60733571,3722.9,3722.8,4.198]
[1753380084343,3.74173571,3722.9,3722.8,4.198]
[1753380085437,0.4894,3723.4,3722.8,4.198]
[1753380085638,0.1344,3723.1,3722.8,4.198]
[1753380086256,0.6238,3723.1,3722.8,4.198]
[1753380086456,0.4894,3723.4,3722.8,4.198]
[1753380086658,0.1344,3723.5,3722.9,0.4319]
[1753380086871,0.4894,3723.4,3722.9,0.1344]
[1753380087036,0.1344,3723.5,3723.0,2.6860059]
[1753380087241,0.1344,3723.5,3723.1,2.68591777]
[1753380087440,0.1344,3723.5,3723.0,4.197]
[1753380087441,0.1344,3723.5,3723.2,2.68585731]
[1753380087773,0.6238,3723.8,3723.2,2.8202433]
[1753380087977,3.30923506,3723.8,3723.2,0.1344]
[1753380088140,0.6238,3723.8,3723.3,2.68577607]
[1753380088346,0.6238,3723.8,3723.2,0.1344]
[1753380088347,0.4894,3723.7,3723.4,4.197]
[1753380088542,0.1344,3723.8,3723.4,4.197]
[1753380088742,0.8055,3724.5,3724.1,2.68521059]
[1753380088942,0.1344,3724.5,3724.2,4.196]
[1753380089194,0.1344,3724.5,3723.9,0.2975]
[1753380089195,0.4894,3724.4,3724.3,4.197]
[1753380090143,3.17439624,3724.4,3724.3,4.197]
[1753380090449,0.4894,3724.4,3724.3,4.197]
[1753380091974,0.9212,3724.4,3724.3,4.197]
[1753380092381,0.9212,3724.4,3723.8,2.68540509]
[1753380092382,0.766,3724.3,3723.8,4.192]
[1753380092582,2.68535674,3723.9,3723.8,4.192]
[1753380092766,0.9212,3723.9,3722.8,0.35230409]
[1753380092966,0.1344,3723.5,3722.6,0.02686294]
[1753380093194,2.68570783,3723.5,3722.7,4.193]
[1753380093365,0.1344,3723.3,3722.8,0.1344]
[1753380093892,0.4894,3723.2,3722.9,4.194]
[1753380094507,0.4894,3723.1,3722.8,0.1344]
[1753380094796,3.11785583,3723.0,3722.9,4.192]
[1753380094981,0.8064,3722.6,3721.3,9.6781882]
[1753380095295,2.68694413,3721.7,3721.2,0.2975]
[1753380095499,0.4894,3721.7,3721.4,4.201]
[1753380095995,0.8064,3723.0,3721.8,0.6403]
[1753380096168,0.4894,3723.4,3722.3,2.68649182]
[1753380096355,0.1344,3723.4,3722.9,0.1344]
[1753380096566,0.1344,3723.5,3723.0,0.2975]
[1753380096874,0.1344,3723.5,3723.1,2.68592872]
[1753380097074,0.6238,3723.6,3723.1,0.1344]
[1753380097275,0.6238,3723.6,3723.1,2.82032003]
[1753380097666,0.1344,3723.6,3723.1,0.1344]
[1753380097911,0.1344,3723.6,3723.2,2.71265514]
[1753380098202,0.1344,3723.6,3723.3,4.21]
[1753380099105,0.1364,3723.8,3723.3,4.21]
[1753380099271,0.002,3723.8,3723.4,0.32435717]
[1753380099481,0.002,3723.8,3723.5,3.41069352]
[1753380099810,0.002,3723.8,3723.7,2.68550098]
[1753380099990,0.002,3723.8,3723.7,6.89350098]
[1753380100963,0.002,3723.8,3723.7,7.19100098]
[1753380101166,0.002,3723.8,3723.7,7.61860098]
[1753380101685,0.002,3723.8,3723.7,7.32110098]
[1753380101884,0.002,3723.8,3723.7,8.73604759]
[1753380102497,0.002,3723.8,3723.7,4.52804759]
[1753380102699,0.002,3723.8,3722.9,4.3]
[1753380102865,0.002,3723.8,3723.5,0.1344]
[1753380103204,0.002,3723.8,3723.6,4.205]
[1753380103387,0.002,3723.8,3723.7,0.1344]
[1753380103721,0.4914,3723.8,3723.7,0.1344]
[1753380104018,0.4914,3723.8,3723.7,4.206]
[1753380104163,2.04856662,3723.8,3722.7,0.6403]
[1753380104360,2.68563852,3723.6,3723.1,0.1344]
[1753380104590,2.68563852,3723.6,3723.2,4.208]
[1753380104764,0.4894,3723.5,3723.2,4.208]
[1753380105098,0.1344,3723.7,3723.3,2.68578948]
[1753380105263,0.4914,3723.8,3723.5,2.68563739]
[1753380105590,0.4914,3723.8,3723.3,0.02685789]
[1753380105591,0.1364,3723.8,3723.4,2.68570115]
[1753380105760,0.4857,3723.8,3723.4,0.1344]
[1753380105960,0.4837,3723.7,3723.4,0.1344]
[1753380106357,0.4837,3723.7,3723.4,2.820095]
[1753380106565,0.4837,3723.7,3723.4,0.1344]
[1753380106763,0.002,3723.8,3723.6,2.68555366]
[1753380107003,0.002,3723.8,3723.7,2.68550098]
[1753380107382,0.002,3723.8,3723.7,2.98300098]
[1753380107705,0.002,3723.8,3723.7,2.68550098]
[1753380108866,0.002,3723.8,3723.6,0.1344]
[1753380109073,0.002,3723.8,3723.7,4.204]
[1753380109505,0.4857,3723.8,3723.7,4.204]
[1753380109809,0.002,3723.8,3723.7,6.88950098]
[1753380110012,0.002,3723.8,3723.7,7.59189108]
[1753380111298,0.002,3723.8,3723.7,8.35919108]
[1753380111497,0.002,3723.8,3723.7,7.59189108]
[1753380112980,0.002,3723.8,3723.7,7.88939108]
[1753380113200,0.002,3723.8,3723.7,7.59189108]
[1753380113879,0.002,3723.8,3723.7,8.06169108]
[1753380114081,0.002,3723.8,3723.7,8.35919108]
[1753380115690,0.002,3723.8,3723.7,7.59189108]
[1753380117088,0.002,3723.8,3723.7,7.58189108]
[1753380119233,0.002,3723.8,3723.7,8.98949108]
[1753380119523,0.002,3723.8,3723.7,9.53949108]
[1753380120501,0.002,3723.8,3723.7,7.57889108]
[1753380120725,0.4857,3723.8,3723.6,0.1344]
[1753380120929,0.4837,3723.7,3723.6,0.1344]
[1753380121126,0.9379,3723.7,3723.3,4.3]
[1753380121327,0.4542,3723.6,3723.4,4.3264]
[1753380121528,0.002,3723.8,3723.5,0.02685645]
[1753380121729,0.002,3723.8,3723.7,2.81990098]
[1753380121915,0.002,3723.8,3723.7,2.84675598]
[1753380122130,0.002,3723.8,3723.7,2.81990098]
[1753380122505,0.002,3723.8,3723.7,0.1344]
[1753380122710,0.002,3723.8,3723.7,2.81990098]
[1753380123015,0.002,3723.8,3723.7,7.01290098]
[1753380123215,0.002,3723.8,3723.7,8.06928761]
[1753380123416,0.002,3723.8,3723.7,8.36678761]
[1753380123648,0.002,3723.8,3723.7,8.83658761]
[1753380123822,0.002,3723.8,3723.7,9.47688761]
[1753380124026,0.7541,3723.7,3722.3,2.821]
[1753380124212,0.1344,3722.4,3721.7,0.1344]
[1753380124412,0.4837,3722.3,3721.8,4.241]
[1753380124644,2.6865832,3722.2,3721.8,4.241]
[1753380124807,0.4542,3722.2,3721.8,4.241]
[1753380125140,0.4837,3722.1,3721.8,4.241]
[1753380125651,0.4837,3722.0,3721.8,4.241]
[1753380125848,0.6181,3722.4,3721.8,6.92785861]
[1753380126015,0.1344,3722.4,3722.0,2.68672407]
[1753380126213,4.51262429,3722.7,3722.1,4.3724]
[1753380126617,3.17002158,3722.6,3722.2,4.237]
[1753380126827,3.62420505,3722.6,3722.2,4.237]
[1753380127154,0.4837,3722.5,3722.3,4.237]
[1753380127440,0.4837,3722.5,3722.4,4.237]
[1753380127644,0.8885,3722.7,3722.4,4.237]
[1753380127821,3.16978929,3722.9,3722.4,4.237]
[1753380128030,0.6181,3722.8,3722.4,4.237]
[1753380128413,0.4837,3722.7,3722.4,4.237]
[1753380128617,3.4542,3723.0,3722.4,4.237]
[1753380128813,0.5886,3723.0,3722.4,4.3714]
[1753380129013,0.4837,3722.9,3722.4,7.05782901]
[1753380129315,0.4837,3722.9,3722.4,7.05782814]
[1753380129513,0.4837,3722.9,3722.4,4.3714]
[1753380129716,0.4837,3722.8,3722.4,4.3714]
[1753380130554,0.4837,3723.1,3722.5,0.02686366]
[1753380130854,0.4837,3723.1,3722.6,0.1344]
[1753380131149,0.4837,3723.0,3722.7,4.233]
[1753380131349,0.4837,3723.0,3722.7,6.91920228]
[1753380131555,0.4837,3723.0,3722.7,4.233]
[1753380131963,0.4837,3722.9,3722.7,4.233]
[1753380133858,0.7767,3722.7,3722.3,4.228]
[1753380134022,0.1344,3722.5,3722.3,4.228]
[1753380134223,0.9379,3722.4,3721.5,0.6403]
[1753380134430,0.1344,3722.2,3721.7,0.1344]
[1753380134661,0.4837,3722.4,3721.8,0.02686871]
[1753380134842,0.1344,3722.5,3721.9,4.23]
[1753380135154,1.2604,3722.7,3722.0,0.4319]
[1753380135352,1.2604,3722.7,3721.9,4.23]
[1753380135353,0.4657,3722.6,3722.3,0.1344]
[1753380135655,0.4657,3722.7,3722.4,4.232]
[1753380135853,0.6001,3722.9,3722.5,2.68635249]
[1753380136030,0.4657,3722.9,3722.4,4.232]
[1753380136221,0.4657,3722.9,3722.5,0.1344]
[1753380136426,0.4657,3722.8,3722.5,0.1344]